[Event "Titled Tuesday Blitz October 5 2021"]
[White "Djordjevic, Vuk"]
[Black "Bilan, Danila"]
[WhiteFideId "902098"]
[BlackFideId "24161918"]
[WhiteElo "2463"]
[BlackElo "2164"]
[Result "1-0"]
[Round "04"]
[TimeControl "180+1"]
[Date "2021.10.05"]
[WhiteClock "0:00:14"]
[BlackClock "0:00:03"]

1. d4 {[%clk 0:03:00]}  d5 {[%clk 0:02:59]} 2. Bf4 {[%clk 0:02:58]}  Nf6 {[%clk 0:02:59]} 3. e3 {[%clk 0:02:58]}  c5 {[%clk 0:02:57]} 4. c3 {[%clk 0:02:58]}  Nc6 {[%clk 0:02:57]} 5. Nd2 {[%clk 0:02:58]}  cxd4 {[%clk 0:02:48]} 6. exd4 {[%clk 0:02:58]}  Bf5 {[%clk 0:02:47]} 7. Ngf3 {[%clk 0:02:57]}  e6 {[%clk 0:02:47]} 8. Nh4 {[%clk 0:02:56]}  Bg4 {[%clk 0:02:39]} 9. Qb3 {[%clk 0:02:55]}  Qc8 {[%clk 0:02:18]} 10. h3 {[%clk 0:02:55]}  Bh5 {[%clk 0:02:18]} 11. g4 {[%clk 0:02:54]}  Bg6 {[%clk 0:02:19]} 12. Be2 {[%clk 0:02:54]}  Be7 {[%clk 0:02:16]} 13. Nxg6 {[%clk 0:02:54]}  hxg6 {[%clk 0:02:16]} 14. Kf1 {[%clk 0:02:55]}  Qd7 {[%clk 0:01:42]} 15. Kg2 {[%clk 0:02:51]}  Bd6 {[%clk 0:01:40]} 16. Be3 {[%clk 0:02:40]}  O-O {[%clk 0:01:09]} 17. h4 {[%clk 0:02:37]}  Ne4 {[%clk 0:01:04]} 18. f3 {[%clk 0:02:24]}  Ng3 {[%clk 0:00:50]} 19. Rhe1 {[%clk 0:02:23]}  Nxe2 {[%clk 0:00:50]} 20. Rxe2 {[%clk 0:02:23]}  f5 {[%clk 0:00:49]} 21. g5 {[%clk 0:02:23]}  f4 {[%clk 0:00:45]} 22. Bf2 {[%clk 0:02:18]}  Ne7 {[%clk 0:00:45]} 23. Rae1 {[%clk 0:02:12]}  Nf5 {[%clk 0:00:42]} 24. Rxe6 {[%clk 0:02:12]}  Ne3+ {[%clk 0:00:39]} 25. R6xe3 {[%clk 0:01:48]}  fxe3 {[%clk 0:00:37]} 26. Qxd5+ {[%clk 0:01:49]}  Kh8 {[%clk 0:00:22]} 27. Rxe3 {[%clk 0:01:47]}  Rf5 {[%clk 0:00:19]} 28. Re5 {[%clk 0:01:47]}  Raf8 {[%clk 0:00:02]} 29. Bg3 {[%clk 0:01:18]}  Rd8 {[%clk 0:00:01]} 30. Rxf5 {[%clk 0:01:13]}  gxf5 {[%clk 0:00:02]} 31. Bxd6 {[%clk 0:01:02]}  Qxd6 {[%clk 0:00:03]} 32. Qxf5 {[%clk 0:00:58]}  Re8 {[%clk 0:00:02]} 33. Ne4 {[%clk 0:00:58]}  Qa6 {[%clk 0:00:03]} 34. h5 {[%clk 0:00:49]}  Qe2+ {[%clk 0:00:03]} 35. Nf2 {[%clk 0:00:49]}  Qe3 {[%clk 0:00:03]} 36. h6 {[%clk 0:00:47]}  gxh6 {[%clk 0:00:03]} 37. Qf6+ {[%clk 0:00:47]}  Kh7 {[%clk 0:00:03]} 38. Qxh6+ {[%clk 0:00:44]}  Kg8 {[%clk 0:00:04]} 39. Qg6+ {[%clk 0:00:44]}  Kf8 {[%clk 0:00:04]} 40. Qf5+ {[%clk 0:00:42]}  Kg8 {[%clk 0:00:05]} 41. Qg6+ {[%clk 0:00:34]}  Kf8 {[%clk 0:00:04]} 42. Qf6+ {[%clk 0:00:33]}  Kg8 {[%clk 0:00:05]} 43. g6 {[%clk 0:00:34]}  Rf8 {[%clk 0:00:05]} 44. Qh4 {[%clk 0:00:26]}  Qxf3+ {[%clk 0:00:06]} 45. Kg1 {[%clk 0:00:26]}  Kg7 {[%clk 0:00:02]} 46. Qh7+ {[%clk 0:00:21]}  Kf6 {[%clk 0:00:03]} 47. g7 {[%clk 0:00:19]}  Qg3+ {[%clk 0:00:03]} 48. Kf1 {[%clk 0:00:20]}  Qxg7 {[%clk 0:00:04]} 49. Qxg7+ {[%clk 0:00:19]}  Kxg7 {[%clk 0:00:04]} 50. Ke2 {[%clk 0:00:20]}  Kf7 {[%clk 0:00:05]} 51. Ne4 {[%clk 0:00:19]}  Ke6 {[%clk 0:00:05]} 52. Nc5+ {[%clk 0:00:19]}  Kd5 {[%clk 0:00:05]} 53. Ke3 {[%clk 0:00:19]}  b6 {[%clk 0:00:05]} 54. Nd3 {[%clk 0:00:19]}  Re8+ {[%clk 0:00:05]} 55. Kd2 {[%clk 0:00:20]}  Rh8 {[%clk 0:00:06]} 56. Nb4+ {[%clk 0:00:19]}  Ke4 {[%clk 0:00:06]} 57. Kc2 {[%clk 0:00:18]}  Rh2+ {[%clk 0:00:07]} 58. Kb3 {[%clk 0:00:18]}  Rh5 {[%clk 0:00:06]} 59. a4 {[%clk 0:00:18]}  Ke3 {[%clk 0:00:05]} 60. Nc6 {[%clk 0:00:17]}  a6 {[%clk 0:00:04]} 61. Ne5 {[%clk 0:00:17]}  Ke4 {[%clk 0:00:04]} 62. Nd7 {[%clk 0:00:14]}  b5 {[%clk 0:00:03]} 63. a5 {[%clk 0:00:13]}  Kd5 {[%clk 0:00:03]} 64. Nf6+ {[%clk 0:00:14]}  Kc6 {[%clk 0:00:02]} 65. Nxh5 {[%clk 0:00:14]}  Kd5 {[%clk 0:00:03]} 1-0


[Site "https://www.chess.com"]

[Event "Titled Tuesday Blitz October 5 2021"]
[White "Fernandez Hernandez, Arturo A."]
[Black "Starozhilov, Leonid"]
[WhiteFideId "3509230"]
[BlackFideId "14106752"]
[WhiteElo "2400"]
[BlackElo "2414"]
[Result "0-1"]
[Round "04"]
[TimeControl "180+1"]
[Date "2021.10.05"]
[WhiteClock "0:00:17"]
[BlackClock "0:01:27"]

1. Nf3 {[%clk 0:03:00]}  Nf6 {[%clk 0:02:59]} 2. c4 {[%clk 0:03:00]}  g6 {[%clk 0:03:00]} 3. b4 {[%clk 0:02:58]}  d5 {[%clk 0:02:59]} 4. e3 {[%clk 0:02:49]}  Bg7 {[%clk 0:02:54]} 5. Bb2 {[%clk 0:02:49]}  O-O {[%clk 0:02:54]} 6. c5 {[%clk 0:02:46]}  Bg4 {[%clk 0:02:53]} 7. Be2 {[%clk 0:02:34]}  Nbd7 {[%clk 0:02:48]} 8. Ne5 {[%clk 0:02:25]}  Bxe2 {[%clk 0:02:47]} 9. Qxe2 {[%clk 0:02:26]}  c6 {[%clk 0:02:44]} 10. f4 {[%clk 0:02:25]}  a5 {[%clk 0:02:43]} 11. a3 {[%clk 0:02:24]}  axb4 {[%clk 0:02:41]} 12. axb4 {[%clk 0:02:25]}  Rxa1 {[%clk 0:02:41]} 13. Bxa1 {[%clk 0:02:26]}  Nxe5 {[%clk 0:02:33]} 14. Bxe5 {[%clk 0:02:22]}  b6 {[%clk 0:02:31]} 15. O-O {[%clk 0:02:17]}  bxc5 {[%clk 0:02:25]} 16. bxc5 {[%clk 0:02:17]}  Ne4 {[%clk 0:02:26]} 17. Bxg7 {[%clk 0:02:07]}  Kxg7 {[%clk 0:02:27]} 18. d4 {[%clk 0:02:07]}  Qa5 {[%clk 0:02:26]} 19. f5 {[%clk 0:02:01]}  Rb8 {[%clk 0:02:22]} 20. fxg6 {[%clk 0:01:26]}  hxg6 {[%clk 0:02:21]} 21. Qc2 {[%clk 0:01:14]}  Qb4 {[%clk 0:02:07]} 22. g3 {[%clk 0:00:43]}  Qb2 {[%clk 0:02:02]} 23. Qg2 {[%clk 0:00:29]}  Qxg2+ {[%clk 0:01:59]} 24. Kxg2 {[%clk 0:00:29]}  Rb2+ {[%clk 0:02:00]} 25. Kf3 {[%clk 0:00:28]}  Rxb1 {[%clk 0:01:59]} 26. Rxb1 {[%clk 0:00:20]}  Nd2+ {[%clk 0:01:59]} 27. Ke2 {[%clk 0:00:21]}  Nxb1 {[%clk 0:02:00]} 28. Kd3 {[%clk 0:00:22]}  Kf6 {[%clk 0:01:52]} 29. Kc2 {[%clk 0:00:22]}  Na3+ {[%clk 0:01:52]} 30. Kb3 {[%clk 0:00:23]}  Nb5 {[%clk 0:01:52]} 31. Kb4 {[%clk 0:00:23]}  Ke6 {[%clk 0:01:52]} 32. Ka5 {[%clk 0:00:23]}  Kd7 {[%clk 0:01:53]} 33. Kb6 {[%clk 0:00:24]}  f5 {[%clk 0:01:48]} 34. h3 {[%clk 0:00:23]}  Nc3 {[%clk 0:01:47]} 35. g4 {[%clk 0:00:24]}  fxg4 {[%clk 0:01:47]} 36. hxg4 {[%clk 0:00:24]}  Nd1 {[%clk 0:01:47]} 37. e4 {[%clk 0:00:22]}  Nc3 {[%clk 0:01:39]} 38. exd5 {[%clk 0:00:20]}  Nxd5+ {[%clk 0:01:39]} 39. Kb7 {[%clk 0:00:20]}  e6 {[%clk 0:01:28]} 40. g5 {[%clk 0:00:20]}  Nb4 {[%clk 0:01:27]} 41. Kb6 {[%clk 0:00:20]}  Nc2 {[%clk 0:01:27]} 42. Ka5 {[%clk 0:00:16]}  Nxd4 {[%clk 0:01:27]} 43. Kb4 {[%clk 0:00:17]}  Nf3 {[%clk 0:01:27]} 0-1


[Site "https://www.chess.com"]

[Event "Titled Tuesday Blitz October 5 2021"]
[White "Fier, Alexandr"]
[Black "Seul, Georg"]
[WhiteFideId "2107139"]
[BlackFideId "4601653"]
[WhiteElo "2569"]
[BlackElo "2332"]
[Result "1-0"]
[Round "04"]
[TimeControl "180+1"]
[Date "2021.10.05"]
[WhiteClock "0:02:26"]
[BlackClock "0:00:36"]

1. e4 {[%clk 0:03:00]}  e5 {[%clk 0:02:58]} 2. f4 {[%clk 0:03:00]}  d5 {[%clk 0:02:57]} 3. exd5 {[%clk 0:02:59]}  exf4 {[%clk 0:02:57]} 4. Nf3 {[%clk 0:02:59]}  Nf6 {[%clk 0:02:57]} 5. Be2 {[%clk 0:02:59]}  Nxd5 {[%clk 0:02:54]} 6. c4 {[%clk 0:03:00]}  Ne7 {[%clk 0:02:52]} 7. d4 {[%clk 0:03:00]}  Ng6 {[%clk 0:02:51]} 8. O-O {[%clk 0:03:00]}  Be7 {[%clk 0:02:50]} 9. Nc3 {[%clk 0:03:01]}  O-O {[%clk 0:02:50]} 10. Nd5 {[%clk 0:03:00]}  Nc6 {[%clk 0:02:46]} 11. Nxf4 {[%clk 0:02:59]}  Bg4 {[%clk 0:02:39]} 12. d5 {[%clk 0:02:57]}  Bxf3 {[%clk 0:02:38]} 13. Bxf3 {[%clk 0:02:57]}  Nce5 {[%clk 0:02:38]} 14. Be2 {[%clk 0:02:55]}  Bc5+ {[%clk 0:02:37]} 15. Kh1 {[%clk 0:02:55]}  Qd7 {[%clk 0:02:31]} 16. Nh5 {[%clk 0:02:53]}  f5 {[%clk 0:02:21]} 17. b3 {[%clk 0:02:52]}  Rae8 {[%clk 0:02:19]} 18. Bb2 {[%clk 0:02:52]}  Qe7 {[%clk 0:02:14]} 19. Bf3 {[%clk 0:02:46]}  Qg5 {[%clk 0:02:04]} 20. Bc1 {[%clk 0:02:42]}  Be3 {[%clk 0:02:01]} 21. Ba3 {[%clk 0:02:41]}  Rf7 {[%clk 0:01:59]} 22. Ng3 {[%clk 0:02:37]}  Nxf3 {[%clk 0:01:54]} 23. Qxf3 {[%clk 0:02:34]}  Nh4 {[%clk 0:01:53]} 24. Qh5 {[%clk 0:02:33]}  Qxh5 {[%clk 0:01:44]} 25. Nxh5 {[%clk 0:02:34]}  g6 {[%clk 0:01:28]} 26. Ng3 {[%clk 0:02:34]}  Bd4 {[%clk 0:01:27]} 27. Rad1 {[%clk 0:02:33]}  Bg7 {[%clk 0:01:25]} 28. Rfe1 {[%clk 0:02:31]}  Re5 {[%clk 0:01:21]} 29. Rxe5 {[%clk 0:02:27]}  Bxe5 {[%clk 0:01:20]} 30. Re1 {[%clk 0:02:28]}  Bd6 {[%clk 0:01:18]} 31. Bxd6 {[%clk 0:02:28]}  cxd6 {[%clk 0:01:17]} 32. Re6 {[%clk 0:02:28]}  Rd7 {[%clk 0:01:10]} 33. Kg1 {[%clk 0:02:28]}  Kf7 {[%clk 0:01:10]} 34. Kf2 {[%clk 0:02:28]}  a5 {[%clk 0:01:06]} 35. Ne2 {[%clk 0:02:28]}  g5 {[%clk 0:00:53]} 36. Nd4 {[%clk 0:02:28]}  a4 {[%clk 0:00:37]} 37. g3 {[%clk 0:02:26]}  axb3 {[%clk 0:00:36]} 38. axb3 {[%clk 0:02:26]} 1-0


[Site "https://www.chess.com"]

[Event "Titled Tuesday Blitz October 5 2021"]
[White "Florescu, Codrut-Constantin"]
[Black "Bordi, Kevin"]
[WhiteFideId "1202200"]
[BlackFideId "621862"]
[WhiteElo "2243"]
[BlackElo "2824"]
[Result "0-1"]
[Round "04"]
[TimeControl "180+1"]
[Date "2021.10.05"]
[WhiteClock "0:00:01"]
[BlackClock "0:00:08"]

1. d4 {[%clk 0:03:00]}  Nf6 {[%clk 0:02:59]} 2. c4 {[%clk 0:03:00]}  c6 {[%clk 0:02:59]} 3. Nf3 {[%clk 0:02:59]}  d5 {[%clk 0:02:59]} 4. e3 {[%clk 0:02:59]}  Bf5 {[%clk 0:02:59]} 5. Bd3 {[%clk 0:02:58]}  Bg6 {[%clk 0:02:56]} 6. Bxg6 {[%clk 0:02:57]}  hxg6 {[%clk 0:02:56]} 7. Qc2 {[%clk 0:02:56]}  e6 {[%clk 0:02:56]} 8. O-O {[%clk 0:02:53]}  Bd6 {[%clk 0:02:53]} 9. h3 {[%clk 0:02:52]}  Ne4 {[%clk 0:02:53]} 10. Nc3 {[%clk 0:02:45]}  f5 {[%clk 0:02:51]} 11. Nxe4 {[%clk 0:02:44]}  fxe4 {[%clk 0:02:50]} 12. Ne5 {[%clk 0:02:44]}  Bxe5 {[%clk 0:02:30]} 13. dxe5 {[%clk 0:02:43]}  Nd7 {[%clk 0:02:31]} 14. cxd5 {[%clk 0:02:37]}  exd5 {[%clk 0:02:23]} 15. f4 {[%clk 0:02:27]}  g5 {[%clk 0:02:19]} 16. e6 {[%clk 0:02:25]}  Nf8 {[%clk 0:02:02]} 17. f5 {[%clk 0:02:25]}  g4 {[%clk 0:01:55]} 18. Qb3 {[%clk 0:01:57]}  Qc7 {[%clk 0:01:45]} 19. Rf4 {[%clk 0:01:38]}  gxh3 {[%clk 0:01:37]} 20. g3 {[%clk 0:01:23]}  g6 {[%clk 0:00:58]} 21. Qc3 {[%clk 0:01:15]}  Rh7 {[%clk 0:00:49]} 22. Kh2 {[%clk 0:00:57]}  gxf5 {[%clk 0:00:44]} 23. Qf6 {[%clk 0:00:55]}  Qe7 {[%clk 0:00:38]} 24. Qxf5 {[%clk 0:00:55]}  O-O-O {[%clk 0:00:33]} 25. Bd2 {[%clk 0:00:46]}  Nxe6 {[%clk 0:00:25]} 26. Raf1 {[%clk 0:00:35]}  Qd7 {[%clk 0:00:22]} 27. Bb4 {[%clk 0:00:18]}  Nxf4 {[%clk 0:00:20]} 28. Qxf4 {[%clk 0:00:16]}  b6 {[%clk 0:00:19]} 29. a4 {[%clk 0:00:15]}  c5 {[%clk 0:00:18]} 30. Bc3 {[%clk 0:00:14]}  Kb7 {[%clk 0:00:17]} 31. Be5 {[%clk 0:00:14]}  Qxa4 {[%clk 0:00:15]} 32. Rf2 {[%clk 0:00:12]}  Qd7 {[%clk 0:00:11]} 33. Qg5 {[%clk 0:00:11]}  Re8 {[%clk 0:00:11]} 34. b4 {[%clk 0:00:10]}  Rf7 {[%clk 0:00:10]} 35. Rd2 {[%clk 0:00:09]}  Rf5 {[%clk 0:00:08]} 36. Qg7 {[%clk 0:00:05]}  Rf7 {[%clk 0:00:07]} 37. Qg5 {[%clk 0:00:05]}  Rf5 {[%clk 0:00:07]} 38. Qg7 {[%clk 0:00:04]}  Re7 {[%clk 0:00:08]} 39. Qh8 {[%clk 0:00:03]}  Rfxe5 {[%clk 0:00:07]} 40. bxc5 {[%clk 0:00:04]}  Re8 {[%clk 0:00:08]} 41. c6+ {[%clk 0:00:03]}  Qxc6 {[%clk 0:00:08]} 42. Qg7+ {[%clk 0:00:02]}  R8e7 {[%clk 0:00:09]} 43. Qg4 {[%clk 0:00:03]}  Qe6 {[%clk 0:00:08]} 44. Qf4 {[%clk 0:00:03]}  Rf7 {[%clk 0:00:08]} 45. Qh4 {[%clk 0:00:02]}  Ref5 {[%clk 0:00:09]} 46. Rc2 {[%clk 0:00:03]}  Rf2+ {[%clk 0:00:09]} 47. Kg1 {[%clk 0:00:03]}  Rxc2 {[%clk 0:00:08]} 48. Qd8 {[%clk 0:00:03]}  h2+ {[%clk 0:00:07]} 49. Kh1 {[%clk 0:00:01]}  Rf1# {[%clk 0:00:08]} 0-1


[Site "https://www.chess.com"]

[Event "Titled Tuesday Blitz October 5 2021"]
[White "Gabrielian, Artur"]
[Black "Timofeev, Artyom"]
[WhiteFideId "4131002"]
[BlackFideId "4140419"]
[WhiteElo "2489"]
[BlackElo "2591"]
[Result "0-1"]
[Round "04"]
[TimeControl "180+1"]
[Date "2021.10.05"]
[WhiteClock "0:00:50"]
[BlackClock "0:02:19"]

1. e4 {[%clk 0:03:00]}  c5 {[%clk 0:02:59]} 2. Nc3 {[%clk 0:03:01]}  Nc6 {[%clk 0:02:58]} 3. Bb5 {[%clk 0:03:01]}  Nd4 {[%clk 0:02:58]} 4. Bc4 {[%clk 0:03:02]}  e6 {[%clk 0:02:58]} 5. Nf3 {[%clk 0:03:02]}  Ne7 {[%clk 0:02:55]} 6. Nxd4 {[%clk 0:03:01]}  cxd4 {[%clk 0:02:55]} 7. Ne2 {[%clk 0:03:02]}  Nc6 {[%clk 0:02:54]} 8. O-O {[%clk 0:03:01]}  Be7 {[%clk 0:02:53]} 9. d3 {[%clk 0:03:01]}  O-O {[%clk 0:02:53]} 10. a3 {[%clk 0:03:01]}  f5 {[%clk 0:02:43]} 11. c3 {[%clk 0:02:55]}  dxc3 {[%clk 0:02:41]} 12. Nxc3 {[%clk 0:02:55]}  f4 {[%clk 0:02:38]} 13. d4 {[%clk 0:02:51]}  Kh8 {[%clk 0:02:37]} 14. d5 {[%clk 0:02:47]}  Ne5 {[%clk 0:02:37]} 15. Ba2 {[%clk 0:02:42]}  f3 {[%clk 0:02:32]} 16. g3 {[%clk 0:02:42]}  Qe8 {[%clk 0:02:31]} 17. dxe6 {[%clk 0:01:02]}  Qh5 {[%clk 0:02:26]} 18. Nd5 {[%clk 0:00:54]}  Qh3 {[%clk 0:02:22]} 19. Ne3 {[%clk 0:00:53]}  Ng4 {[%clk 0:02:21]} 20. Qc2 {[%clk 0:00:50]}  Qxh2# {[%clk 0:02:19]} 0-1


[Site "https://www.chess.com"]

[Event "Titled Tuesday Blitz October 5 2021"]
[White "Garcia Garcia, Alejandro"]
[Black "Bujisho, Benjamin"]
[WhiteFideId "3516334"]
[BlackFideId "608610"]
[WhiteElo "2131"]
[BlackElo "2371"]
[Result "1/2-1/2"]
[Round "04"]
[TimeControl "180+1"]
[Date "2021.10.05"]
[WhiteClock "0:00:17"]
[BlackClock "0:00:13"]

1. Nf3 {[%clk 0:03:00]}  g6 {[%clk 0:02:59]} 2. g3 {[%clk 0:03:01]}  Bg7 {[%clk 0:02:59]} 3. Bg2 {[%clk 0:03:01]}  Nf6 {[%clk 0:02:59]} 4. O-O {[%clk 0:03:02]}  O-O {[%clk 0:02:59]} 5. c4 {[%clk 0:03:03]}  d6 {[%clk 0:02:58]} 6. Nc3 {[%clk 0:03:03]}  e5 {[%clk 0:02:58]} 7. Rb1 {[%clk 0:03:03]}  Re8 {[%clk 0:02:58]} 8. b4 {[%clk 0:03:03]}  a6 {[%clk 0:02:54]} 9. a4 {[%clk 0:03:01]}  c6 {[%clk 0:02:51]} 10. b5 {[%clk 0:02:56]}  axb5 {[%clk 0:02:51]} 11. axb5 {[%clk 0:02:56]}  d5 {[%clk 0:02:52]} 12. bxc6 {[%clk 0:02:55]}  bxc6 {[%clk 0:02:52]} 13. cxd5 {[%clk 0:02:53]}  cxd5 {[%clk 0:02:47]} 14. d4 {[%clk 0:02:49]}  e4 {[%clk 0:02:43]} 15. Ne5 {[%clk 0:02:49]}  Nbd7 {[%clk 0:02:40]} 16. Bg5 {[%clk 0:02:39]}  Nxe5 {[%clk 0:02:34]} 17. dxe5 {[%clk 0:02:38]}  Rxe5 {[%clk 0:02:35]} 18. Nxe4 {[%clk 0:02:37]}  Bf5 {[%clk 0:02:27]} 19. Nxf6+ {[%clk 0:02:18]}  Bxf6 {[%clk 0:02:28]} 20. Bxf6 {[%clk 0:02:18]}  Qxf6 {[%clk 0:02:24]} 21. Rb2 {[%clk 0:02:09]}  Be4 {[%clk 0:02:17]} 22. e3 {[%clk 0:01:45]}  h5 {[%clk 0:01:42]} 23. Rd2 {[%clk 0:01:36]}  h4 {[%clk 0:01:39]} 24. Bxe4 {[%clk 0:01:31]}  dxe4 {[%clk 0:01:39]} 25. Qg4 {[%clk 0:01:31]}  Kg7 {[%clk 0:01:10]} 26. Rfd1 {[%clk 0:01:23]}  hxg3 {[%clk 0:00:48]} 27. hxg3 {[%clk 0:01:22]}  Qf5 {[%clk 0:00:28]} 28. Qxf5 {[%clk 0:01:07]}  Rxf5 {[%clk 0:00:28]} 29. Rd5 {[%clk 0:01:06]}  Rxd5 {[%clk 0:00:25]} 30. Rxd5 {[%clk 0:01:06]}  f5 {[%clk 0:00:26]} 31. Rd2 {[%clk 0:01:00]}  Kf6 {[%clk 0:00:25]} 32. Kg2 {[%clk 0:00:59]}  Kg5 {[%clk 0:00:25]} 33. Rb2 {[%clk 0:00:59]}  Ra3 {[%clk 0:00:25]} 34. Rb6 {[%clk 0:00:57]}  Ra2 {[%clk 0:00:24]} 35. Rc6 {[%clk 0:00:56]}  Kh5 {[%clk 0:00:24]} 36. Rf6 {[%clk 0:00:55]}  Rb2 {[%clk 0:00:21]} 37. Re6 {[%clk 0:00:46]}  g5 {[%clk 0:00:19]} 38. Re5 {[%clk 0:00:44]}  Kg4 {[%clk 0:00:19]} 39. Re8 {[%clk 0:00:43]}  Ra2 {[%clk 0:00:17]} 40. Rf8 {[%clk 0:00:43]}  Rb2 {[%clk 0:00:16]} 41. Re8 {[%clk 0:00:43]}  Rb6 {[%clk 0:00:15]} 42. Ra8 {[%clk 0:00:40]}  Rg6 {[%clk 0:00:14]} 43. Ra4 {[%clk 0:00:39]}  Re6 {[%clk 0:00:12]} 44. Ra8 {[%clk 0:00:26]}  Kh5 {[%clk 0:00:12]} 45. Rh8+ {[%clk 0:00:25]}  Kg6 {[%clk 0:00:13]} 46. Rf8 {[%clk 0:00:25]}  Kg7 {[%clk 0:00:12]} 47. Rxf5 {[%clk 0:00:25]}  Kg6 {[%clk 0:00:13]} 48. Rf8 {[%clk 0:00:25]}  Kg7 {[%clk 0:00:13]} 49. Ra8 {[%clk 0:00:24]}  Kg6 {[%clk 0:00:14]} 50. Ra5 {[%clk 0:00:24]}  Kf6 {[%clk 0:00:14]} 51. g4 {[%clk 0:00:25]}  Kg6 {[%clk 0:00:14]} 52. Kg3 {[%clk 0:00:25]}  Re8 {[%clk 0:00:14]} 53. Rf5 {[%clk 0:00:24]}  Re7 {[%clk 0:00:14]} 54. f3 {[%clk 0:00:24]}  exf3 {[%clk 0:00:14]} 55. Kxf3 {[%clk 0:00:25]}  Ra7 {[%clk 0:00:14]} 56. Rb5 {[%clk 0:00:24]}  Ra4 {[%clk 0:00:15]} 57. Re5 {[%clk 0:00:21]}  Kf6 {[%clk 0:00:14]} 58. Rf5+ {[%clk 0:00:22]}  Kg6 {[%clk 0:00:15]} 59. Rf8 {[%clk 0:00:22]}  Kg7 {[%clk 0:00:15]} 60. Re8 {[%clk 0:00:21]}  Kg6 {[%clk 0:00:15]} 61. Re4 {[%clk 0:00:20]}  Ra1 {[%clk 0:00:14]} 62. Re6+ {[%clk 0:00:20]}  Kf7 {[%clk 0:00:14]} 63. Rb6 {[%clk 0:00:20]}  Rf1+ {[%clk 0:00:12]} 64. Ke4 {[%clk 0:00:19]}  Kg7 {[%clk 0:00:13]} 65. Ke5 {[%clk 0:00:19]}  Rf3 {[%clk 0:00:12]} 66. e4 {[%clk 0:00:19]}  Rf4 {[%clk 0:00:12]} 67. Rb7+ {[%clk 0:00:17]}  Kg6 {[%clk 0:00:12]} 68. Rb6+ {[%clk 0:00:17]}  Kg7 {[%clk 0:00:12]} 69. Rb7+ {[%clk 0:00:17]}  Kg6 {[%clk 0:00:13]} 70. Rb6+ {[%clk 0:00:17]}  Kg7 {[%clk 0:00:13]} 1/2-1/2


[Site "https://www.chess.com"]

[Event "Titled Tuesday Blitz October 5 2021"]
[White "Gelman, Alexander"]
[Black "Pasti, Aron"]
[WhiteFideId "4118316"]
[BlackFideId "785857"]
[WhiteElo "2375"]
[BlackElo "2080"]
[Result "1-0"]
[Round "04"]
[TimeControl "180+1"]
[Date "2021.10.05"]
[WhiteClock "0:00:53"]
[BlackClock "0:00:02"]

1. d4 {[%clk 0:03:00]}  d5 {[%clk 0:02:59]} 2. Nc3 {[%clk 0:02:59]}  Nf6 {[%clk 0:02:57]} 3. Bf4 {[%clk 0:02:55]}  a6 {[%clk 0:02:57]} 4. e3 {[%clk 0:02:53]}  c5 {[%clk 0:02:55]} 5. Nf3 {[%clk 0:02:52]}  Nc6 {[%clk 0:02:55]} 6. Ne5 {[%clk 0:02:52]}  Bf5 {[%clk 0:02:35]} 7. g4 {[%clk 0:02:51]}  Bg6 {[%clk 0:02:08]} 8. h4 {[%clk 0:02:51]}  cxd4 {[%clk 0:02:04]} 9. exd4 {[%clk 0:02:50]}  Nb4 {[%clk 0:01:57]} 10. Rc1 {[%clk 0:02:50]}  e6 {[%clk 0:00:24]} 11. h5 {[%clk 0:02:47]}  Be4 {[%clk 0:00:25]} 12. f3 {[%clk 0:02:45]}  Bxc2 {[%clk 0:00:25]} 13. Rxc2 {[%clk 0:02:45]}  Nxc2+ {[%clk 0:00:25]} 14. Qxc2 {[%clk 0:02:46]}  Bd6 {[%clk 0:00:23]} 15. g5 {[%clk 0:02:19]}  Nd7 {[%clk 0:00:22]} 16. Bd3 {[%clk 0:01:31]}  Bxe5 {[%clk 0:00:11]} 17. dxe5 {[%clk 0:01:32]}  Qb6 {[%clk 0:00:08]} 18. Bxh7 {[%clk 0:01:10]}  Qd4 {[%clk 0:00:05]} 19. Ne2 {[%clk 0:01:05]}  Qb4+ {[%clk 0:00:04]} 20. Bd2 {[%clk 0:01:03]}  Qb5 {[%clk 0:00:02]} 21. Bd3 {[%clk 0:00:58]}  Qc6 {[%clk 0:00:02]} 22. f4 {[%clk 0:00:53]} 1-0


[Site "https://www.chess.com"]

[Event "Titled Tuesday Blitz October 5 2021"]
[White "Glavina, Pablo"]
[Black "Kostiukov, Alexandr"]
[WhiteFideId "100234"]
[BlackFideId "14108100"]
[WhiteElo "2369"]
[BlackElo "2227"]
[Result "1-0"]
[Round "04"]
[TimeControl "180+1"]
[Date "2021.10.05"]
[WhiteClock "0:01:01"]
[BlackClock "0:01:05"]

1. d4 {[%clk 0:03:00]}  g6 {[%clk 0:02:54]} 2. e4 {[%clk 0:02:59]}  Bg7 {[%clk 0:02:54]} 3. Nf3 {[%clk 0:02:57]}  c5 {[%clk 0:02:53]} 4. c3 {[%clk 0:02:53]}  cxd4 {[%clk 0:02:52]} 5. cxd4 {[%clk 0:02:54]}  d5 {[%clk 0:02:52]} 6. e5 {[%clk 0:02:54]}  Nc6 {[%clk 0:02:53]} 7. Bb5 {[%clk 0:02:52]}  Bg4 {[%clk 0:02:51]} 8. Bxc6+ {[%clk 0:02:49]}  bxc6 {[%clk 0:02:51]} 9. O-O {[%clk 0:02:49]}  Nh6 {[%clk 0:02:51]} 10. Nbd2 {[%clk 0:02:46]}  O-O {[%clk 0:02:50]} 11. h3 {[%clk 0:02:46]}  Bxf3 {[%clk 0:02:50]} 12. Nxf3 {[%clk 0:02:47]}  f6 {[%clk 0:02:44]} 13. Re1 {[%clk 0:02:43]}  fxe5 {[%clk 0:02:33]} 14. Nxe5 {[%clk 0:02:36]}  Rc8 {[%clk 0:02:23]} 15. Bg5 {[%clk 0:02:23]}  Nf7 {[%clk 0:02:15]} 16. Nxf7 {[%clk 0:02:15]}  Rxf7 {[%clk 0:02:16]} 17. Qg4 {[%clk 0:02:16]}  Rc7 {[%clk 0:01:57]} 18. Re2 {[%clk 0:02:02]}  Qd7 {[%clk 0:01:52]} 19. Qh4 {[%clk 0:02:02]}  Bf6 {[%clk 0:01:49]} 20. Rae1 {[%clk 0:02:00]}  h5 {[%clk 0:01:31]} 21. Bxf6 {[%clk 0:01:16]}  exf6 {[%clk 0:01:30]} 22. g4 {[%clk 0:01:17]}  hxg4 {[%clk 0:01:27]} 23. Re8+ {[%clk 0:01:16]}  Rf8 {[%clk 0:01:23]} 24. Rxf8+ {[%clk 0:01:01]}  Kxf8 {[%clk 0:01:23]} 25. Qxf6+ {[%clk 0:01:01]}  Kg8 {[%clk 0:01:05]} 26. Qxg6+ {[%clk 0:01:01]} 1-0


[Site "https://www.chess.com"]

[Event "Titled Tuesday Blitz October 5 2021"]
[White "Harshavardhan G B"]
[Black "Chernomordik, Pavel"]
[WhiteFideId "25059009"]
[BlackFideId "2804530"]
[WhiteElo "1825"]
[BlackElo "2281"]
[Result "1-0"]
[Round "04"]
[TimeControl "180+1"]
[Date "2021.10.05"]
[WhiteClock "0:02:17"]
[BlackClock "0:00:44"]

1. e4 {[%clk 0:02:49]}  g6 {[%clk 0:02:59]} 2. d4 {[%clk 0:02:48]}  Bg7 {[%clk 0:02:56]} 3. Nc3 {[%clk 0:02:48]}  d6 {[%clk 0:02:54]} 4. Be3 {[%clk 0:02:47]}  a6 {[%clk 0:02:50]} 5. a4 {[%clk 0:02:44]}  b6 {[%clk 0:02:48]} 6. Bc4 {[%clk 0:02:43]}  e6 {[%clk 0:02:47]} 7. Nf3 {[%clk 0:02:43]}  Ne7 {[%clk 0:02:41]} 8. h4 {[%clk 0:02:42]}  h6 {[%clk 0:02:41]} 9. Qd2 {[%clk 0:02:41]}  d5 {[%clk 0:02:32]} 10. Bd3 {[%clk 0:02:41]}  Nd7 {[%clk 0:02:28]} 11. exd5 {[%clk 0:02:37]}  exd5 {[%clk 0:02:25]} 12. O-O-O {[%clk 0:02:37]}  c5 {[%clk 0:02:07]} 13. h5 {[%clk 0:02:36]}  g5 {[%clk 0:01:22]} 14. Rhe1 {[%clk 0:02:33]}  c4 {[%clk 0:01:20]} 15. Nxd5 {[%clk 0:02:32]}  Nxd5 {[%clk 0:01:09]} 16. Bxg5+ {[%clk 0:02:31]}  Ne7 {[%clk 0:01:05]} 17. Bxe7 {[%clk 0:02:29]}  Qxe7 {[%clk 0:01:05]} 18. Bxc4 {[%clk 0:02:29]}  Ne5 {[%clk 0:01:01]} 19. Nxe5 {[%clk 0:02:28]}  O-O {[%clk 0:00:55]} 20. Ng6 {[%clk 0:02:27]}  Qc7 {[%clk 0:00:51]} 21. Nxf8 {[%clk 0:02:21]}  Qxc4 {[%clk 0:00:50]} 22. Re8 {[%clk 0:02:21]}  Qa2 {[%clk 0:00:45]} 23. Ne6+ {[%clk 0:02:18]}  Kh7 {[%clk 0:00:44]} 24. Qd3+ {[%clk 0:02:17]} 1-0


[Site "https://www.chess.com"]